{"text_format":"1","workbook":"xlsx","n_sheets":3,"sheets":["Krok 1","Krok 2","Krok 3"],"not_rendered":{"charts":0,"images":2,"macros":1,"external_links":1,"defined_names":8,"comments":0,"pivot_tables":0},"unopened":[],"bounds":{"document_bytes":16777216,"sheet_cells":100000,"rows_first":2000,"rows_last":500,"rows_between":2000,"halvings":0,"cell_chars":16384,"cell_head_chars":4096},"cells_cut":0,"cells_raw":0,"read":"whole","date_system":"1900"}

{"sheet":"Krok 1","index":0,"n_rows":10,"n_cols":3,"rows_kept":10,"cut":false,"hidden":false,"merged":[[1,1,1,5]]}
[]
[null,"Konfigurator oferty SPE w ramach Dotacji celowej dla uczniów posiadających orzeczenie o potrzebie kształcenia  specjalnego"]
[]
[null,null,"Imię i nazwisko"]
[]
[null,null,"Adres szkoły"]
[]
[null,null,"Dane kontaktowe"]
[]
[null,null,"Dodatkowe informacje/notatki"]

{"sheet":"Krok 2","index":1,"n_rows":275,"n_cols":7,"rows_kept":275,"cut":false,"hidden":false,"merged":[[0,0,0,6],[210,0,212,0],[155,0,162,0],[163,0,165,0],[166,0,173,0],[174,0,176,0],[177,0,179,0],[180,0,181,0],[182,0,185,0],[186,0,192,0],[193,0,194,0],[111,0,113,0],[114,0,119,0],[120,0,122,0],[123,0,128,0],[129,0,131,0],[132,0,136,0],[197,0,202,0],[204,0,205,0],[206,0,208,0],[82,6,84,6],[40,5,42,5],[44,4,46,4],[44,5,46,5],[82,4,84,4],[15,4,16,4],[44,6,46,6],[36,5,38,5],[56,4,57,4],[53,4,54,4],[53,5,54,5],[50,0,51,0],[50,4,51,4],[53,0,54,0],[56,0,57,0],[59,0,60,0],[40,0,42,0],[44,0,46,0],[40,4,42,4],[3,0,3,6],[62,0,62,6],[76,0,76,6],[72,0,72,6],[59,4,60,4],[78,4,80,4],[78,6,80,6],[78,5,80,5],[9,4,10,4],[9,0,10,0],[36,0,38,0],[9,6,10,6],[9,5,10,5],[36,6,38,6],[34,0,34,6],[36,4,38,4],[78,0,80,0],[53,6,54,6],[56,5,57,5],[56,6,57,6],[59,5,60,5],[59,6,60,6],[239,0,250,0],[251,0,256,0],[257,0,268,0],[269,0,274,0],[1,0,1,6],[2,0,2,6],[4,0,4,6],[6,0,7,0],[6,4,7,4],[6,5,7,5],[6,6,7,6],[50,5,51,5],[50,6,51,6],[40,6,42,6],[48,0,48,6],[12,0,13,0],[12,4,13,4],[12,5,13,5],[12,6,13,6],[18,0,18,6],[15,5,16,5],[30,0,30,6],[15,6,16,6],[15,0,16,0],[82,0,84,0],[86,0,88,0],[92,0,93,0],[213,0,220,0],[221,0,223,0],[226,0,227,0],[229,0,231,0],[232,0,238,0],[95,0,95,6],[86,6,88,6],[86,5,88,5],[86,4,88,4],[143,0,145,0],[146,0,151,0],[152,0,154,0],[92,4,93,4],[92,5,93,5],[92,6,93,6],[90,0,90,6],[137,0,142,0],[100,0,100,5],[102,0,104,0],[105,0,110,0],[82,5,84,5]]}
[]
["Szkoła Podstawowa Ogólnodostępna - SPE"]
["Propozycje Zestawów"]
["Ceny publikacji w Zestawach są dostosowane, aby umożliwić wykorzystanie pełnej kwoty dotacji"]
["Klasy 1–3. Propozycje materiałów ćwiczeniowych \n(wartość dotacji pozostająca na dodatkowe materiały dla uczniów z niepełnosprawnością intelektualną w stopniu lekkim - 81,68 zł)"]
["Zestaw","Tytuł","KH","Cena  pojedynczego egz.","Cena w zestawie","Liczba egz.","Wartość"]
["Zestaw 1","Pewny start. B Karty pracy  jesień/zima","086628",39,{"$f":"D7+D8","v":81.680000000000007},null,{"$f":"E7*F7","v":0}]
[null,"Pewny start. MÓJ DOBRY ROK Karty pracy. Czytanie i pisanie","085832",42.68]
[]
["Zestaw 2","Pewny start. C Karty pracy. Czytanie i pisanie","086685",39,{"$f":"D10+D11","v":81.680000000000007},null,{"$f":"E10*F10:F11","v":0}]
[null,"Pewny start. C Zestaw. Karty pracy. Jesień, zima. Wiosna, lato","086687",42.68]
[]
["Zestaw 3","Pewny start. B Karty pracy  wiosna/lato","086629",39,{"$f":"D13+D14","v":81.680000000000007},null,{"$f":"E13*F13","v":0}]
[null,"Pewny start. ODKRYWAM ŚWIAT Moje ćwiczenia. Poziom A","086111",42.68]
[]
["Zestaw 4 ","Pewny start. A. Zestaw. Karty pracy. Jesień, zima, Wiosna, lato","086567",42.68,{"$f":"D16+D17","v":81.680000000000007},null,{"$f":"E16*F16","v":0}]
[null,"Pewny start. B Karty pracy pisanie/czytanie","086625",39]
[]
["Klasy 4–8. Propozycje materiałów ćwiczeniowych \n(wartość dotacji pozostająca na dodatkowe materiały dla uczniów z niepełnosprawnością intelektualną w stopniu lekkim - 40,85 zł)"]
["Zestaw","Tytuł","KH","Cena  pojedynczego egz.","Cena w zestawie","Liczba egz.","Wartość"]
["Zestaw 5","Pewny start. MOJA CODZIENNOŚĆ Karty pracy. Wiosna, lato","085813",40.85,{"$f":"D21","v":40.85},null,{"$f":"E21*F21","v":0}]
[]
["Zestaw 6","Pewny start. E Zestaw. Karty pracy. Jesień, zima, Wiosna, lato","086647",40.85,{"$f":"D23","v":40.85},null,{"$f":"E23*F23","v":0}]
[]
["Zestaw 7","Pewny start. F. Zestaw. Karty pracy. Jesień, zima. Wiosna, lato","086707",40.85,{"$f":"D25","v":40.85},null,{"$f":"E25*F25","v":0}]
[]
["Zestaw 8","Pewny start. G Zestaw. Karty pracy. Jesień, zima, Wiosna, lato","086609",40.85,{"$f":"D27","v":40.85},null,{"$f":"E27*F27","v":0}]
[]
["Zestaw 9","Pewny start. H Zestaw. Karty pracy. Jesień, zima, Wiosna, lato","086669",40.85,{"$f":"D29","v":40.85},null,{"$f":"E29*F29","v":0}]
[]
["Klasa 3. Propozycje materiałów edukacyjnych \n(wartość dotacji pozostająca na dodatkowe materiały dla uczniów z niepełnosprawnością intelektualną w stopniu lekkim - 176,42 zł)"]
["Zestaw","Tytuł","KH","Cena  pojedynczego egz.","Cena w zestawie","Liczba egz.","Wartość"]
["Zestaw 10","Pewny start. C. Moja książka. Codziennik","086681",176.42,176.42,null,{"$f":"E33*F33","v":0}]
[]
["Klasa 6. Propozycje materiałów edukacyjnych \n(wartość dotacji pozostająca na dodatkowe materiały dla uczniów z niepełnosprawnością intelektualną w stopniu lekkim - 259,18 zł)"]
["Zestaw","Tytuł","KH","Cena  pojedynczego egz.","Cena w zestawie","Liczba egz.","Wartość"]
["Zestaw 11","Pewny start. F. Moja książka ","086702",109.18,{"$f":"D37+D38+D39","v":259.18},null,{"$f":"E39*F39","v":0}]
[null,"Pewny start. F. Codziennik. Funkcjonowanie 2","086704",75]
[null,"Pewny start. F. Codziennik. Komunikacja","086705",75]
[]
["Zestaw 12","Pewny start. F. Moja książka ","086702",109.18,{"$f":"D41+D42+D43","v":259.18},null,{"$f":"E43*F43","v":0}]
[null,"Pewny start. F. Codziennik. Funkcjonowanie 1","086703",75]
[null,"Pewny start. F. Codziennik. Kreatywność","086706",75]
[]
["Zestaw 13","Pewny start. F. Codziennik. Funkcjonowanie 1","086703",87.18,{"$f":"D45+D46+D47","v":259.18},null,{"$f":"E47*F47","v":0}]
[null,"Pewny start. F. Codziennik. Funkcjonowanie 2","086704",86]
[null,"Pewny start. F. Codziennik. Komunikacja","086705",86]
[]
["Klasy 1–3 Propozycje materiałów ćwiczeniowych \n(wartość dotacji pozostająca na dodatkowe materiały dla uczniów z autyzmem - 87,12 zł)"]
["Zestaw","Tytuł","KH","Cena  pojedynczego egz.","Cena w zestawie","Liczba egz.","Wartość"]
["Zestaw 14","FUNKCJE PSYCHOFIZYCZNE Karty pracy. Funkcjonowanie społeczne. Poziom 1","086536",48.12,{"$f":"D51+D52","v":87.12},null,{"$f":"E51*F51","v":0}]
[null,"Pewny start. B Karty pracy plastyka/grafomotoryka","086626",39]
[]
["Zestaw 15","FUNKCJE PSYCHOFIZYCZNE Karty pracy. Koncentracja uwagi. Poziom 1","086532",48.12,{"$f":"D54+D55","v":87.12},null,{"$f":"E54*F54","v":0}]
[null,"Pewny start. C. Karty pracy. Matematyka","086686",39]
[]
["Zestaw 16","FUNKCJE PSYCHOFIZYCZNE Karty pracy. Wypowiedzi ustne i pisemne. Poziom 1","086537",48.12,{"$f":"D57+D58","v":87.12},null,{"$f":"E57*F57","v":0}]
[null,"Pewny start. C. Karty pracy. Czytanie i pisanie","086685",39]
[]
["Zestaw 17","Pewny start. C. Karty pracy. Matematyka","086686",48.12,{"$f":"D60+D61","v":87.12},null,{"$f":"E60*F60","v":0}]
[null,"Pewny start. C. Karty pracy. Czytanie i pisanie","086685",39]
[]
["Klasy 4–8 Propozycje materiałów ćwiczeniowych \n(wartość dotacji pozostająca na dodatkowe materiały dla uczniów z autyzmem - 43,57 zł)"]
["Zestaw","Tytuł","KH","Cena  pojedynczego egz.","Cena w zestawie","Liczba egz.","Wartość"]
["Zestaw 18","Funkcje psychofizyczne. Funkcjonowanie społeczne 2","086542",43.57,{"$f":"D65","v":43.57},null,{"$f":"E65*F65","v":0}]
[]
["Zestaw 19","Funkcje psychofizyczne.Wypowiedzi ustne i pisemne 2","086543",43.57,{"$f":"D67","v":43.57},null,{"$f":"E67*F67","v":0}]
[]
["Zestaw 20","FUNKCJE PSYCHOFIZYCZNE Karty pracy. Koncentracja uwagi. Poziom 2","086538",43.57,{"$f":"D69","v":43.57},null,{"$f":"E69*F69","v":0}]
[]
["Zestaw 21","FUNKCJE PSYCHOFIZYCZNE Karty pracy. Percepcja słuchowa. Poziom 2","086540",43.57,{"$f":"D71","v":43.57},null,{"$f":"E71*F71","v":0}]
[]
["Klasa 3. Propozycje materiałów edukacyjnych \n(wartość dotacji pozostająca na dodatkowe materiały dla uczniów z autyzmem - 176,42 zł)"]
["Zestaw","Tytuł","KH","Cena  pojedynczego egz.","Cena w zestawie","Liczba egz.","Wartość"]
["Zestaw 22","Pewny start. C. Moja książka. Codziennik","086681",176.42,{"$f":"D75","v":176.42}]
[]
["Klasa 6. Propozycje materiałów edukacyjnych \n(wartość dotacji pozostająca na dodatkowe materiały dla uczniów z autyzmem - 259,18 zł)"]
["Zestaw","Tytuł","KH","Cena  pojedynczego egz.","Cena w zestawie","Liczba egz.","Wartość"]
["Zestaw 23","Pewny start. F. Moja książka ","086702",109.18,{"$f":"D79+D80+D81","v":259.18},null,{"$f":"E79*F79","v":0}]
[null,"Pewny start. F. Codziennik. Funkcjonowanie 2","086704",75]
[null,"Pewny start. F. Codziennik. Komunikacja","086705",75]
[]
["Zestaw 24","Pewny start. F. Moja książka ","086702",109.18,{"$f":"D83+D84+D85","v":259.18},null,{"$f":"E83*F83","v":0}]
[null,"Pewny start. F. Codziennik. Funkcjonowanie 1","086703",75]
[null,"Pewny start. F. Codziennik. Kreatywność","086706",75]
[]
["Zestaw 25","Pewny start. F. Codziennik. Funkcjonowanie 1","086703",87.18,{"$f":"D87+D88+D89","v":259.18},null,{"$f":"E87*F87","v":0}]
[null,"Pewny start. F. Codziennik. Funkcjonowanie 2","086704",86]
[null,"Pewny start. F. Codziennik. Komunikacja","086705",86]
[]
["Klasy 1–3. Propozycje materiałów ćwiczeniowych \n(wartość dotacji pozostająca na dodatkowe materiały dla uczniów z niepełnosprawnością intelektualną w stopniu umiarkowanym lub znacznym - 98,01 zł)"]
["Zestaw","Tytuł","KH","Cena  pojedynczego egz.","Cena w zestawie","Liczba egz.","Wartość"]
["Zestaw 26","Pewny start. A. Zestaw. Karty pracy. Jesień, zima, Wiosna, lato","086567",65.010000000000005,{"$f":"D93+D94","v":98.01},null,{"$f":"E93*F93","v":0}]
[null,"Pewny start. A. Karty pracy Plastyka, grafomotoryka","086566",33]
[]
["Klasa 3. Propozycje materiałów edukacyjnych \n(wartość dotacji pozostająca na dodatkowe materiały dla uczniów z niepełnosprawnością intelektualną w stopniu umiarkowanym lub znacznym - 98,01 zł)"]
["Zestaw","Tytuł","KH","Cena  pojedynczego egz.","Cena w zestawie","Liczba egz.","Wartość"]
["Zestaw 27","Pewny start A Moja książka","086562",98.01,{"$f":"D98","v":98.01},null,{"$f":"E98*F98","v":0}]
[]
[]
["PEŁNA LISTA PUBLIKACJI "]
["Rodzaj","Tytuł","KH","Cena  pojedynczego egz.","Ilość egz.","Wartość"]
["MATERIAŁY EDUKACYJNE","Pewny start. A Zestaw. Moja książka, Codziennik szkolny Funkcjonowanie, komunikacja, kreatywność","086561",197,null,{"$f":"E103*D103","v":0}]
[null,"Pewny start. A Moja książka","086562",110,null,{"$f":"E104*D104","v":0}]
[null,"Pewny start. A Codziennik szkolny Funkcjonowanie, komunikacja, kreatywność","086563",95,null,{"$f":"E105*D105","v":0}]
["MATERIAŁY ĆWICZENIOWE","Pewny start. A Zestaw. Karty pracy. Jesień, zima, Wiosna, lato","086567",77,null,0]
[null,"Pewny start. A Zestaw. Karty pracy. Czytanie, pisanie, Plastyka, grafomotoryka","086564",77,null,0]
[null,"Pewny start. A Karty pracy Jesień, zima","086568",44,null,0]
[null,"Pewny start. A Karty pracy Wiosna, lato","086569",44,null,0]
[null,"Pewny start. A Karty pracy Pisanie, czytanie","086565",44,null,0]
[null,"Pewny start. A Karty pracy Plastyka, grafomotoryka","086566",44,null,0]
["MATERIAŁY EDUKACYJNE","Pewny start. B Zestaw Moja książka. Codziennik. Funkcjonowanie, komunikacja, kreatywność","086621",197,null,0]
[null,"Pewny start. B Moja książka","086622",110.00000000000001,null,0]
[null,"Pewny start. B Codziennik szkolny. Funkcjonowanie, komunikacja, kreatywność","086623",95,null,0]
["MATERIAŁY ĆWICZENIOWE","Pewny start. B Zestaw Karty pracy. Czytanie, pisanie. Plastyka, grafomotoryka","086624",77,null,0]
[null,"Pewny start. B Zestaw Zestaw. Karty pracy. Jesień, zima, Wiosna, lato","086627",77,null,0]
[null,"Pewny start. B Karty pracy Jesień, zima","086628",44,null,0]
[null,"Pewny start. B Karty pracy  Wiosna, lato","086629",44,null,0]
[null,"Pewny start. B Karty pracy Pisanie, czytanie","086625",44,null,0]
[null,"Pewny start. B Karty pracy Plastyka, grafomotoryka","086626",44,null,0]
["MATERIAŁY EDUKACYJNE","Pewny start. C Pakiet edukacyjny zestaw moja książka. Codziennik. Funkcjonowanie,komunikacja,kreatywność","086681",197,null,0]
[null,"Pewny start. C Moja książka","086682",110,null,0]
[null,"Pewny start. C Codziennik fun/kom/kre","086683",95,null,0]
["MATERIAŁY ĆWICZENIOWE","Pewny start. C Pakiet ćwiczeniowy 1 czytanie, pisanie, plastyka,grafomotoryka","086684",77,null,0]
[null,"Pewny start. C Pakiet ćwiczeniowy 2-Jesień, zima, wiosna, lato","086687",77,null,0]
[null,"Pewny start. C Karty pracy  jesień/zima","086688",44,null,0]
[null,"Pewny start. C Karty pracy 2 wiosna/lato","086689",44,null,0]
[null,"Pewny start. C Karty pracy pisanie/czytanie","086685",44,null,0]
[null,"Pewny start. C Karty pracy matematyka","086686",44,null,0]
["MATERIAŁY EDUKACYJNE","Pewny start. D Zestaw Moja książka, Codziennik szkolny. Funkcjonowanie, Codziennik szkolny. Komunikacja, Codziennik szkolny. Kreatywność ","086581",380,null,0]
[null,"Pewny start. D Moja książka","086582",112,null,0]
[null,"Pewny start. D Codziennik szkolny. Funkcjonowanie","086583",95,null,0]
["MATERIAŁY ĆWICZENIOWE","Pewny start. D Codziennik szkolny. Komunikacja","086584",95,null,0]
[null,"Pewny start. D Codziennik szkolny. Kreatywność","086585",95,null,0]
[null,"Pewny start. D  Zestaw. Karty pracy. Jesień, zima, Wiosna, lato","086586",77,null,0]
[null,"Pewny start. D Karty pracy.  Jesień, zima","086587",44,null,0]
[null,"Pewny start. D Karty pracy.  Wiosna, lato","086588",44,null,0]
["MATERIAŁY EDUKACYJNE","Pewny start. E Zestaw Moja książka, Codziennik. Funkcjonowanie 1-2, Komunikacja, Kreatywność","086641",495,null,0]
[null,"Pewny start. E Moja książka","086642",130,null,0]
[null,"Pewny start. E Cdziennik. Funkcjonowanie 1","086643",95,null,0]
[null,"Pewny start. E Codziennik. Funkcjonowanie 2","086644",95,null,0]
[null,"Pewny start. E Codziennik. Komunikacja","086645",95,null,0]
[null,"Pewny start. E Codziennik. Kreatywność","086646",95,null,0]
["MATERIAŁY ĆWICZENIOWE","Pewny start. E Zestaw. Karty pracy. Jesień, zima, Wiosna, lato","086647",77,null,0]
[null,"Pewny start. E Karty pracy. Jesień, zima","086648",40,null,0]
[null,"Pewny start. E Karty pracy. Wiosna, lato","086649",40,null,0]
["MATERIAŁY EDUKACYJNE","Pewny start. F Pakiet edukacyjny. Zestaw moja książka, Codziennik. Funkcjonowanie 1-2, Komunikacja, Kreatywność","086701",495,null,0]
[null,"Pewny start. F Moja książka","086702",130,null,0]
[null,"Pewny start. F Cdziennik. Funkcjonowanie 1","086703",95,null,0]
[null,"Pewny start. F Codziennik. Funkcjonowanie 2","086704",95,null,0]
[null,"Pewny start. F Codziennik. Komunikacja","086705",95,null,0]
[null,"Pewny start. F Codziennik. Kreatywność","086706",95,null,0]
["MATERIAŁY ĆWICZENIOWE","Pewny start. F Pakiet ćwiczeniowy. Zestaw karty pracy: jesień, zima, wiosna, lato","086707",77,null,0]
[null,"Pewny start. F Karty pracy. Jesień/zima","086708",40,null,0]
[null,"Pewny start. F Karty pracy. Wiosna/lato","086709",40,null,0]
["MATERIAŁY EDUKACYJNE","Pewny start. G Zestaw Moja książka. Codziennik szkolny. Funkcjonowanie 1-3, Komunikacja 1-2, Kreatywność ","086601",650,null,0]
[null,"Pewny start. G Moja książka","086602",112,null,0]
[null,"Pewny start. G Codziennik szkolny. Funkcjonowanie 1","086603",95,null,0]
[null,"Pewny start. G Codziennik szkolny. Funkcjonowanie 2","086604",95,null,0]
[null,"Pewny start. G Codziennik szkolny. Funkcjonowanie 3","086605",95,null,0]
[null,"Pewny start. G Codziennik szkolny. Komunikacja 1","086606",95,null,0]
[null,"Pewny start. G Codziennik szkolny. Komunikacja 2","086607",95,null,0]
[null,"Pewny start. G Codziennik szkolny. Kreatywność","086608",95,null,0]
["MATERIAŁY ĆWICZENIOWE","Pewny start. G Zestaw. Karty pracy. Jesień, zima, Wiosna, lato","086609",77,null,0]
[null,"Pewny start. G Karty pracy  Jesień, zima","086610",39,null,0]
[null,"Pewny start. G Karty pracy  Wiosna, lato","086611",39,null,0]
["MATERIAŁY EDUKACYJNE","Pewny start. H Zestaw Moja książka, Codziennik. Funkcjonowanie 1-3, Komunikacja1-2, Kreatywność","086661",690,null,0]
[null,"Pewny start. H Moja książka","086662",130,null,0]
[null,"Pewny start. H Codziennik funkcjonowanie 1","086663",95,null,0]
[null,"Pewny start. H Codziennik funkcjonowanie 2","086664",95,null,0]
[null,"Pewny start. H Codziennik funkcjonowanie 3","086665",95,null,0]
[null,"Pewny start. H Codziennik komunikacja 1","086666",95,null,0]
[null,"Pewny start. H Codziennik komunikacja 2","086667",95,null,0]
[null,"Pewny start. H Codziennik kreatywność","086668",95,null,0]
["MATERIAŁY ĆWICZENIOWE","Pewny start. H Zestaw. Karty pracy. Jesień, zima, Wiosna, lato","086669",77,null,0]
[null,"Pewny start. H Karty pracy  jesień/zima","086670",40,null,0]
[null,"Pewny start. H Karty pracy  wiosna/lato","086671",40,null,0]
["MATERIAŁY EDUKACYJNE / MATERIAŁY ĆWICZENIOWE","Akademia pomysłów. Zajęcia wyrównawcze Zestaw","085611",499,null,0]
[null,"Akademia pomysłów. Uczeń z  niepełnosprawnością intelektualną w stopniu lekkim Zestaw","085591",499,null,0]
[null,"Akademia pomysłów. Uczeń ze spektrum autyzmu 1-3 Zestaw","085551",499,null,0]
["MATERIAŁY EDUKACYJNE","Pewny start. Nowe cztery pory roku Karty matematyczne. Liczby","085938",47,null,0]
[null,"Pewny start. Nowe cztery pory roku Karty do nauki czytania i pisania. Litery i wyrazy","085937",60,null,0]
["MATERIAŁY ĆWICZENIOWE","Pewny start. Nowe cztery pory roku Karty zadaniowe. Umiem to zrobić","085936",43,null,0]
[null,"Pewny start. Nowe cztery pory roku Karty pracy. Jesień","085932",55,null,0]
[null,"Pewny start. Nowe cztery pory roku Karty pracy. Wiosna, lato","085934",55,null,0]
[null,"Pewny start. Nowe cztery pory roku Karty pracy. Zima","085933",55,null,0]
["MATERIAŁY ĆWICZENIOWE","Funkcje psychofizyczne. Karty pracy. Grafomotoryka. Poziom 1","086531",60,null,{"$f":"E187*D187","v":0}]
[null,"Funkcje psychofizyczne. Karty pracy. Koncentracja uwagi. Poziom 1","086532",60,null,0]
[null,"Funkcje psychofizyczne. Karty pracy. Percepcja wzrokowa. Poziom 1","086533",60,null,0]
[null,"Funkcje psychofizyczne. Karty pracy. Percepcja słuchowa. Poziom 1","086534",60,null,0]
[null,"Funkcje psychofizyczne.Karty pracy. Orientacja przestrzenna. Poziom 1","086535",60,null,0]
[null,"Funkcje psychofizyczne. Karty pracy. Funkcjonowanie społeczne. Poziom 1","086536",60,null,0]
[null,"Funkcje psychofizyczne. Karty pracy. Wypowiedzi ustne i pisemne. Poziom1","086537",60,null,0]
["MATERIAŁY EDUKACYJNE","PWN Akademia pisania. Układanki obrazkowo-wyrazowe. Poznaję i utrwalam poprawną wpisownię wyrazów ó/u","049141",44,null,0]
[null,"PWN Akademia pisania. Układanki obrazkowo-wyrazowe. Poznaję i utrwalam poprawną wpisownię wyrazów rz/ż","049142",44,null,0]
["MATERIAŁY EDUKACYJNE","Pewny start. Zaśpiewajmy razem. Śpiewnik z symbolami PCS","049741",90,null,0]
["MATERIAŁY ĆWICZENIOWE","PWN Pewny start. Zaśpiewajmy razem. Zeszyt ćwiczeń Zeszyt plastyczno- grafomotoryczny do śpiewnika z symbolami PCS","049742",30,null,0]
["MATERIAŁY ĆWICZENIOWE","Funkcje psychofizyczne. Funkcjonowanie społeczne 2","086542",60,null,0]
[null,"Funkcje psychofizyczne. Koncentracja uwagi 2","086538",60,null,0]
[null,"Funkcje psychofizyczne.Orientacja przestrzenna 2","086541",60,null,0]
[null,"Funkcje psychofizyczne. Percepcja słuchowa 2","086540",60,null,0]
[null,"Funkcje psychofizyczne.Percepcja wzrokowa 2","086539",60,null,0]
[null,"Funkcje psychofizyczne.Wypowiedzi ustne i pisemne 2","086543",60,null,0]
["MATERIAŁY EDUKACYJNE","Pewny start. Mój dobry rok. Materiał edukacyjny. Lubię jesień, Lubię zimę, Lubię wiosnę, lubię lato","085831",83,null,0]
["MATERIAŁY ĆWICZENIOWE","Pewny start. Mój dobry rok. Karty pracy. Czytanie i pisanie","085832",52,null,0]
[null,"PWN Pewny start. Mój dobry rok. Plansze konturowe","049281",63,null,0]
["MATERIAŁY EDUKACYJNE","Pewny start. Świat wokół mnie. Wycinanki. Emocje","086193",43,null,0]
[null,"Pewny start. Świat wokół mnie. Historyjki obrazkowe. Układam, opowiadam","086192",56,null,0]
[null,"Pewny start. Świat wokół mnie. Czytanki. Ola, Adam i ich świat","086195",43,null,0]
["MATERIAŁY EDUKACYJNE","Pewny start. Wokół pór roku. Czytanki. Rozmowy Oli i Adama","086265",43,null,0]
["MATERIAŁY ĆWICZENIOWE","Pewny start. Wokół pór roku. Karty pracy. Wokół jesieni","086262",39,null,0]
[null,"Pewny start. Wokół pór roku. Karty pracy. Wokół wiosny, wokół lata","086264",39,null,0]
[null,"Pewny start. Wokół pór roku. Karty pracy. Wokół zimy","086263",39,null,0]
["MATERIAŁY ĆWICZENIOWE","Pewny start. Moja matematyka. Zestaw Kart pracy Jesień, Zima, Wiosna,lato. Poziom A","086481",154,null,0]
[null,"Pewny start. Moja matematyka. Karty pracy. Jesień. Poziom A","086482",55,null,0]
[null,"Pewny start. Moja matematyka. Karty pracy. Zima. Poziom A","086483",55,null,0]
[null,"Pewny start. Moja matematyka. Karty pracy. Wiosna, lato. Poziom A","086484",55,null,0]
[null,"Pewny start. Moja matematyka. Zestaw Kart pracy. Jesień, Zima, Wiosna,lato. Poziom B","086485",154,null,0]
[null,"Pewny start. Moja matematyka. Karty pracy. Jesień. Poziom B","086486",55,null,0]
[null,"Pewny start. Moja matematyka. Karty pracy. Zima. Poziom B","086487",55,null,0]
[null,"Pewny start. Moja matematyka. Karty pracy. Wiosna, lato. Poziom B","086488",55,null,0]
["MATERIAŁY ĆWICZENIOWE","Pewny start. Moja codzienność. Karty pracy. Jesień","085811",42,null,0]
[null,"Pewny start. Moja codzienność. Karty pracy. Wiosna, lato","085813",42,null,0]
[null,"Pewny start. Moja codzienność. Karty pracy. Zima","085812",42,null,0]
["MATERIAŁY EDUKACYJNE / MATERIAŁY ĆWICZENIOWE","Akademia pomysłów. Uczeń ze spektrum autyzmu 4-8 Zestaw","085571",499,null,0]
["MATERIAŁY EDUKACYJNE","Pewny start. Odkrywam świat. Materiał edukacyjny. Moja książka. PoziomA","086112",96,null,0]
["MATERIAŁY ĆWICZENIOWE","Pewny start. Odkrywam świat. Moje ćwiczenia. Poziom A","086111",52,null,0]
[null,"Pewny start. Odkrywam świat. Moje ćwiczenia. Poziom B","086113",52,null,0]
["MATERIAŁY ĆWICZENIOWE","Pewny start. Poznać i zrozumieć uczucia. Karty pracy. Nasz wewnętrzny świat","086142",39,null,0]
["MATERIAŁY EDUKACYJNE","Pewny start. Poznać i zrozumieć uczucia. Poradnik pozytywny. Jak sobie radzić z uczuciami","086147",62,null,0]
[null,"Pewny start. Poznać i zrozumieć uczucia. Historyjki społeczne. Uczucia w nas i w relacjach ze światem","086146",56,null,0]
[null,"Pewny start. Poznać i zrozumieć uczucia. Historyjki obrazkowe. Co by było, gdyby","086148",83,null,0]
["MATERIAŁY EDUKACYJNE","PWN Pewny start. Aktywni zawodowo. Materiał edukacyjny. ABC rękodzieła","049157",75,null,0]
[null,"PWN Pewny start. Aktywni zawodowo. Materiał edukacyjny. Pracuję w biurze","049164",75,null,0]
[null,"PWN Pewny start. Aktywni zawodowo. Materiał edukacyjny. Podaję do stołu","049169",75,null,0]
[null,"PWN Pewny start. Aktywni zawodowo. Materiał edukacyjny. ABC pracy w kuchni","049167",75,null,0]
[null,"PWN Pewny start. Aktywni zawodowo. Materiał edukacyjny. Obsługa AGD  w kuchni","049168",75,null,0]
[null,"PWN Pewny start. Aktywni zawodowo. Plansze magnetyczne. Kalendarz ogrodnika","049177",200,null,0]
[null,"Pewny start. Aktywni zawodowo. Prace porządkowe. Czynności porządkowe. Materiał edukacyjny","085713",75,null,0]
["MATERIAŁY ĆWICZENIOWE","Pewny start. Aktywni zawodowo. Karty pracy 1. Rękodzieło","085705",50,null,0]
[null,"Pewny start. Aktywni zawodowo. Karty pracy 2. Rękodzieło","085706",50,null,0]
[null,"Pewny start. Aktywni zawodowo. Karty pracy 1. Prace biurowe","085703",50,null,0]
[null,"Pewny start. Aktywni zawodowo. Karty pracy 2. Prace biurowe","085704",50,null,0]
[null,"Pewny start. Aktywni zawodowo. Karty pracy 1. Zajęcia kulinarne","085707",50,null,0]
[null,"Pewny start. Aktywni zawodowo. Karty pracy 2. Zajęcia kulinarne","085708",50,null,0]
[null,"Pewny start. Aktywni zawodowo. Karty pracy 3. Zajęcia kulinarne","049172",50,null,0]
[null,"Pewny start. Aktywni zawodowo. Karty pracy 1. Ogrodnictwo","085701",50,null,0]
[null,"Pewny start. Aktywni zawodowo. Karty pracy 2. Ogrodnictwo","085702",50,null,0]
[null,"Pewny start. Aktywni zawodowo. Prace porządkowe. Karty pracy 1","085710",50,null,0]
[null,"Pewny start. Aktywni zawodowo. Prace porządkowe. Karty pracy 2","085711",50,null,0]
[null,"Pewny start. Aktywni zawodowo. Prace porządkowe. Karty pracy 3","085712",50,null,{"$f":"E251*D251","v":0}]
["MATERIAŁY ĆWICZENIOWE","Funkcje psychofizyczne. Karty pracy. Koncentracja uwagi. Poziom 3","086544",60,null,0]
[null,"Funkcje psychofizyczne. Karty pracy. Percepcja wzrokowa. Poziom 3","086545",60,null,0]
[null,"Funkcje psychofizyczne. Karty pracy. Percepcja słuchowa. Poziom 3","086546",60,null,0]
[null,"Funkcje psychofizyczne. Karty pracy. Orientacja przestrzenna. Poziom 3","086547",60,null,0]
[null,"Funkcje psychofizyczne. Karty pracy. Funkcjonowanie społeczne. Poziom 3","086548",60,null,0]
[null,"Funkcje psychofizyczne. Karty pracy. Wypowiedzi ustne i pisemne. Poziom 3","086549",60,null,0]
["MATERIAŁY EDUKACYJNE","PWN Pewny start. Instrukcje zachowań. Asertywność","049283",43,null,0]
[null,"PWN Pewny start. Instrukcje zachowań. Bezpieczeństwo na drodze","049284",43,null,0]
[null,"PWN Pewny start. Instrukcje zachowań. Choroba","049286",43,null,0]
[null,"PWN Pewny start. Instrukcje zachowań. Czas wolny","049288",43,null,0]
[null,"PWN Pewny start. Instrukcje zachowań. Dbam o swoje ciało","049289",43,null,0]
[null,"PWN Pewny start. Instrukcje zachowań. Jedzenie","049292",43,null,0]
[null,"PWN Pewny start. Instrukcje zachowań. Jestem dorosły","049293",43,null,0]
[null,"PWN Pewny start. Instrukcje zachowań. Kawiarnia","049294",43,null,0]
[null,"PWN Pewny start. Instrukcje zachowań. Kim jestem?","049295",43,null,0]
[null,"PWN Pewny start. Instrukcje zachowań. Pory roku","049300",43,null,0]
[null,"PWN Pewny start. Instrukcje zachowań. Ubranie","049301",43,null,0]
[null,"PWN Pewny start. Instrukcje zachowań. Zakupy","049302",43,null,0]
["OUTLET","PWN Pewny start. Czytam sam. Ja i świat zwierząt","049093",43,null,0]
[null,"PWN Akademia pomysłów. Jestem za rozmową. Komiks społeczny z ćwiczeniami 2","049017",69,null,0]
[null,"PWN Akademia pomysłów. Rozwój emocjonalno-społeczny. Ja i moje ciało. Część 2","049002",48,null,0]
[null,"Pewny start. Dzisiaj w szkole. Czytanki. Poznajemy Olę i Adama","085781",43,null,0]
[null,"PWN Pewny start. Mój dobry rok. Plansze demonstracyjne. Poznaję świat","049409",200,null,0]
[null,"PWN Pewny start. O dojrzewaniu.  Dziewczęta Zestaw","049497",265,null,{"$f":"E275*D275","v":0}]

{"sheet":"Krok 3","index":2,"n_rows":237,"n_cols":8,"rows_kept":237,"cut":false,"hidden":false,"merged":[[49,7,51,7],[52,5,54,5],[52,7,54,7],[55,0,56,0],[55,4,56,4],[55,5,56,5],[55,7,56,7],[49,0,51,0],[49,4,51,4],[52,0,54,0],[52,4,54,4],[49,5,51,5],[39,5,40,5],[39,7,40,7],[46,5,48,5],[46,7,48,7],[37,5,38,5],[39,0,40,0],[39,4,40,4],[46,0,48,0],[46,4,48,4],[16,7,17,7],[24,5,26,5],[24,7,26,7],[27,5,29,5],[27,7,29,7],[16,5,17,5],[30,7,32,7],[33,5,34,5],[33,7,34,7],[35,5,36,5],[35,7,36,7],[30,5,32,5],[12,7,13,7],[14,7,15,7],[12,5,13,5],[14,5,15,5],[37,4,38,4],[37,7,38,7],[30,4,32,4],[12,0,13,0],[12,4,13,4],[14,0,15,0],[14,4,15,4],[16,0,17,0],[16,4,17,4],[24,0,26,0],[24,4,26,4],[236,3,236,4],[236,5,236,7],[59,0,59,5],[8,0,8,7],[10,7,11,7],[10,5,11,5],[10,4,11,4],[10,0,11,0],[33,0,34,0],[33,4,34,4],[35,0,36,0],[35,4,36,4],[37,0,38,0],[27,0,29,0],[27,4,29,4],[30,0,32,0]]}
[]
[null,"Oferta Dotacja Celowa SPE …………………….."]
[]
["Imię i nazwisko",{"$f":"'Krok 1'!E4","v":0}]
["Adres szkoły",{"$f":"'Krok 1'!E6","v":0}]
["Dane kontaktowe",{"$f":"'Krok 1'!E8","v":0}]
["Dodatkowe informacje/notatki",{"$f":"'Krok 1'!E10","v":0}]
[]
["PAKIETY"]
["Pakiet","Tytuł","KH","Cena  pojedynczego egz.","Cena w pakiecie","Ilość egz.",null,"Wartość"]
["Zestaw 1","Pewny start. B Karty pracy  jesień/zima","086628",39,{"$f":"D11+D12","v":81.680000000000007},{"$f":"'Krok 2'!F7","v":0},{"$f":"F11","v":0},{"$f":"F11*E11","v":0}]
[null,"Pewny start. MÓJ DOBRY ROK Karty pracy. Czytanie i pisanie","085832",42.68,null,null,{"$f":"F11","v":0}]
["Zestaw 2","Pewny start. C Karty pracy. Czytanie i pisanie","086685",39,{"$f":"D13+D14","v":81.680000000000007},{"$f":"'Krok 2'!F10","v":0},0,{"$f":"F13*E13","v":0}]
[null,"Pewny start. C Zestaw. Karty pracy. Jesień, zima. Wiosna, lato","086687",42.68,null,null,{"$f":"F13","v":0}]
["Zestaw 3","Pewny start. B Karty pracy  wiosna/lato","086629",39,{"$f":"D15+D16","v":81.680000000000007},{"$f":"'Krok 2'!F13","v":0},0,{"$f":"F15*E15","v":0}]
[null,"Pewny start. ODKRYWAM ŚWIAT Moje ćwiczenia. Poziom A","086111",42.68,null,null,{"$f":"F15","v":0}]
["Zestaw 4 ","Pewny start. A. Zestaw. Karty pracy. Jesień, zima, Wiosna, lato","086567",42.68,{"$f":"D17+D18","v":81.680000000000007},{"$f":"'Krok 2'!F16","v":0},0,{"$f":"F17*E17","v":0}]
[null,"Pewny start. B Karty pracy pisanie/czytanie","086625",39,null,null,{"$f":"F17","v":0}]
["Zestaw 5","Pewny start. MOJA CODZIENNOŚĆ Karty pracy. Wiosna, lato","085813",40.86,{"$f":"D19","v":40.86},{"$f":"'Krok 2'!F21","v":0},0,{"$f":"F19*E19","v":0}]
["Zestaw 6","Pewny start. E Zestaw. Karty pracy. Jesień, zima, Wiosna, lato","086647",40.85,{"$f":"D20","v":40.85},{"$f":"'Krok 2'!F23","v":0},0,0]
["Zestaw 7","Pewny start. F. Zestaw. Karty pracy. Jesień, zima. Wiosna, lato","086707",40.85,{"$f":"D21","v":40.85},{"$f":"'Krok 2'!F25","v":0},0,0]
["Zestaw 8","Pewny start. G Zestaw. Karty pracy. Jesień, zima, Wiosna, lato","086609",40.85,{"$f":"D22+D23","v":81.7},{"$f":"'Krok 2'!F27","v":0},0,0]
["Zestaw 9","Pewny start. H Zestaw. Karty pracy. Jesień, zima, Wiosna, lato","086669",40.85,{"$f":"D23","v":40.85},{"$f":"'Krok 2'!F29","v":0},0,0]
["Zestaw 10","Pewny start. C. Moja książka. Codziennik","086681",176.42,176.42,{"$f":"'Krok 2'!F33","v":0},0,0]
["Zestaw 11","Pewny start. F. Moja książka ","086702",109.18,{"$f":"D25+D26+D27","v":259.18},{"$f":"'Krok 2'!F37","v":0},{"$f":"F25","v":0},{"$f":"E25*F25","v":0}]
[null,"Pewny start. F. Codziennik. Funkcjonowanie 2","086704",75,null,null,{"$f":"F25","v":0}]
[null,"Pewny start. F. Codziennik. Komunikacja","086705",75,null,null,{"$f":"F25","v":0}]
["Zestaw 12","Pewny start. F. Moja książka ","086702",109.18,{"$f":"D28+D29+D30","v":259.18},{"$f":"'Krok 2'!F41","v":0},{"$f":"F28","v":0},{"$f":"F28*E28","v":0}]
[null,"Pewny start. F. Codziennik. Funkcjonowanie 1","086703",75,null,null,{"$f":"F28","v":0}]
[null,"Pewny start. F. Codziennik. Kreatywność","086706",75,null,null,{"$f":"F28","v":0}]
["Zestaw 13","Pewny start. F. Codziennik. Funkcjonowanie 1","086703",87.18,{"$f":"D31+D32+D33","v":259.18},{"$f":"'Krok 2'!F45","v":0},{"$f":"F31","v":0},{"$f":"F31*E31","v":0}]
[null,"Pewny start. F. Codziennik. Funkcjonowanie 2","086704",86,null,null,{"$f":"F31","v":0}]
[null,"Pewny start. F. Codziennik. Komunikacja","086705",86,null,null,{"$f":"F31","v":0}]
["Zestaw 14","FUNKCJE PSYCHOFIZYCZNE Karty pracy. Funkcjonowanie społeczne. Poziom 1","086536",48.12,{"$f":"D34+D35","v":87.12},{"$f":"'Krok 2'!F51","v":0},0,{"$f":"E34*F34","v":0}]
[null,"Pewny start. B Karty pracy plastyka/grafomotoryka","086626",39,null,null,{"$f":"F34","v":0}]
["Zestaw 15","FUNKCJE PSYCHOFIZYCZNE Karty pracy. Koncentracja uwagi. Poziom 1","086532",48.12,{"$f":"D36+D37","v":87.12},{"$f":"'Krok 2'!F54","v":0},0,{"$f":"E36*F36","v":0}]
[null,"Pewny start. C. Karty pracy. Matematyka","086686",39,null,null,{"$f":"F36","v":0}]
["Zestaw 16","FUNKCJE PSYCHOFIZYCZNE Karty pracy. Wypowiedzi ustne i pisemne. Poziom 1","086537",48.12,{"$f":"D38+D39","v":87.12},{"$f":"'Krok 2'!F57","v":0},0,{"$f":"E38*F38","v":0}]
[null,"Pewny start. C. Karty pracy. Czytanie i pisanie","086685",39,null,null,{"$f":"F38","v":0}]
["Zestaw 17","Pewny start. C. Karty pracy. Matematyka","086686",48.12,{"$f":"D40+D41","v":87.12},{"$f":"'Krok 2'!F60","v":0},0,{"$f":"E40*F40","v":0}]
[null,"Pewny start. C. Karty pracy. Czytanie i pisanie","086685",39,null,null,{"$f":"F40","v":0}]
["Zestaw 18","Funkcje psychofizyczne. Funkcjonowanie społeczne 2","086542",43.57,{"$f":"D42","v":43.57},{"$f":"'Krok 2'!F65","v":0},0,{"$f":"E42*F42","v":0}]
["Zestaw 19","Funkcje psychofizyczne.Wypowiedzi ustne i pisemne 2","086543",43.57,{"$f":"D43","v":43.57},{"$f":"'Krok 2'!F67","v":0},0,{"$f":"E43*F43","v":0}]
["Zestaw 20","FUNKCJE PSYCHOFIZYCZNE Karty pracy. Koncentracja uwagi. Poziom 2","086538",43.57,{"$f":"D44","v":43.57},{"$f":"'Krok 2'!F69","v":0},0,0]
["Zestaw 21","FUNKCJE PSYCHOFIZYCZNE Karty pracy. Percepcja słuchowa. Poziom 2","086540",43.57,{"$f":"D45","v":43.57},{"$f":"'Krok 2'!F71","v":0},0,0]
["Zestaw 22","Pewny start. C. Moja książka. Codziennik","086681",176.42,{"$f":"D46","v":176.42},{"$f":"'Krok 2'!F75","v":0},0,0]
["Zestaw 23","Pewny start. F. Moja książka ","086702",109.18,{"$f":"D47+D48+D49","v":259.18},{"$f":"'Krok 2'!F79","v":0},0,{"$f":"E47*F47","v":0}]
[null,"Pewny start. F. Codziennik. Funkcjonowanie 2","086704",75,null,null,{"$f":"F47","v":0}]
[null,"Pewny start. F. Codziennik. Komunikacja","086705",75,null,null,{"$f":"F47","v":0}]
["Zestaw 24","Pewny start. F. Moja książka ","086702",109.18,{"$f":"D50+D51+D52","v":259.18},{"$f":"'Krok 2'!F83","v":0},0,{"$f":"E50*F50","v":0}]
[null,"Pewny start. F. Codziennik. Funkcjonowanie 1","086703",75,null,null,{"$f":"F50","v":0}]
[null,"Pewny start. F. Codziennik. Kreatywność","086706",75,null,null,{"$f":"F50","v":0}]
["Zestaw 25","Pewny start. F. Codziennik. Funkcjonowanie 1","086703",87.18,{"$f":"D53+D54+D55","v":259.18},{"$f":"'Krok 2'!F87","v":0},0,{"$f":"E53*F53","v":0}]
[null,"Pewny start. F. Codziennik. Funkcjonowanie 2","086704",86,null,null,{"$f":"F53","v":0}]
[null,"Pewny start. F. Codziennik. Komunikacja","086705",86,null,null,{"$f":"F53","v":0}]
["Zestaw 26","Pewny start. A. Zestaw. Karty pracy. Jesień, zima, Wiosna, lato","086567",65.010000000000005,{"$f":"D56+D57","v":98.01},{"$f":"'Krok 2'!F93","v":0},{"$f":"F56","v":0},{"$f":"E56*F56","v":0}]
[null,"Pewny start. A. Karty pracy Plastyka, grafomotoryka","086566",33,null,null,{"$f":"F56","v":0}]
["Zestaw 27","Pewny start A Moja książka","086562",98.01,{"$f":"D58","v":98.01},{"$f":"'Krok 2'!F98","v":0},{"$f":"F58","v":0},{"$f":"E58*F58","v":0}]
[]
["PEŁNA LISTA PUBLIKACJI "]
["Rodzaj","Tytuł","KH","Cena  pojedynczego egz.","Ilość egz.","Wartość"]
["MATERIAŁY EDUKACYJNE",{"$f":"'Krok 2'!B103","v":"Pewny start. A Zestaw. Moja książka, Codziennik szkolny Funkcjonowanie, komunikacja, kreatywność"},"086561",197,{"$f":"'Krok 2'!E103","v":0},{"$f":"E62*D62","v":0}]
["MATERIAŁY EDUKACYJNE",{"$f":"'Krok 2'!B104","v":"Pewny start. A Moja książka"},"086562",110,{"$f":"'Krok 2'!E104","v":0},{"$f":"E63*D63","v":0}]
["MATERIAŁY EDUKACYJNE",{"$f":"'Krok 2'!B105","v":"Pewny start. A Codziennik szkolny Funkcjonowanie, komunikacja, kreatywność"},"086563",95,{"$f":"'Krok 2'!E105","v":0},0]
["MATERIAŁY ĆWICZENIOWE",{"$f":"'Krok 2'!B106","v":"Pewny start. A Zestaw. Karty pracy. Jesień, zima, Wiosna, lato"},"086567",77,{"$f":"'Krok 2'!E106","v":0},0]
["MATERIAŁY ĆWICZENIOWE",{"$f":"'Krok 2'!B107","v":"Pewny start. A Zestaw. Karty pracy. Czytanie, pisanie, Plastyka, grafomotoryka"},"086564",77,{"$f":"'Krok 2'!E107","v":0},0]
["MATERIAŁY ĆWICZENIOWE",{"$f":"'Krok 2'!B108","v":"Pewny start. A Karty pracy Jesień, zima"},"086568",44,{"$f":"'Krok 2'!E108","v":0},0]
["MATERIAŁY ĆWICZENIOWE",{"$f":"'Krok 2'!B109","v":"Pewny start. A Karty pracy Wiosna, lato"},"086569",44,{"$f":"'Krok 2'!E109","v":0},0]
["MATERIAŁY ĆWICZENIOWE",{"$f":"'Krok 2'!B110","v":"Pewny start. A Karty pracy Pisanie, czytanie"},"086565",44,{"$f":"'Krok 2'!E110","v":0},0]
["MATERIAŁY ĆWICZENIOWE",{"$f":"'Krok 2'!B111","v":"Pewny start. A Karty pracy Plastyka, grafomotoryka"},"086566",44,{"$f":"'Krok 2'!E111","v":0},0]
["MATERIAŁY EDUKACYJNE",{"$f":"'Krok 2'!B112","v":"Pewny start. B Zestaw Moja książka. Codziennik. Funkcjonowanie, komunikacja, kreatywność"},"086621",197,{"$f":"'Krok 2'!E112","v":0},0]
["MATERIAŁY EDUKACYJNE",{"$f":"'Krok 2'!B113","v":"Pewny start. B Moja książka"},"086622",110.00000000000001,{"$f":"'Krok 2'!E113","v":0},0]
["MATERIAŁY EDUKACYJNE",{"$f":"'Krok 2'!B114","v":"Pewny start. B Codziennik szkolny. Funkcjonowanie, komunikacja, kreatywność"},"086623",95,{"$f":"'Krok 2'!E114","v":0},0]
["MATERIAŁY ĆWICZENIOWE",{"$f":"'Krok 2'!B115","v":"Pewny start. B Zestaw Karty pracy. Czytanie, pisanie. Plastyka, grafomotoryka"},"086624",77,{"$f":"'Krok 2'!E115","v":0},0]
["MATERIAŁY ĆWICZENIOWE",{"$f":"'Krok 2'!B116","v":"Pewny start. B Zestaw Zestaw. Karty pracy. Jesień, zima, Wiosna, lato"},"086627",77,{"$f":"'Krok 2'!E116","v":0},0]
["MATERIAŁY ĆWICZENIOWE",{"$f":"'Krok 2'!B117","v":"Pewny start. B Karty pracy Jesień, zima"},"086628",44,{"$f":"'Krok 2'!E117","v":0},0]
["MATERIAŁY ĆWICZENIOWE",{"$f":"'Krok 2'!B118","v":"Pewny start. B Karty pracy  Wiosna, lato"},"086629",44,{"$f":"'Krok 2'!E118","v":0},0]
["MATERIAŁY ĆWICZENIOWE",{"$f":"'Krok 2'!B119","v":"Pewny start. B Karty pracy Pisanie, czytanie"},"086625",44,{"$f":"'Krok 2'!E119","v":0},0]
["MATERIAŁY ĆWICZENIOWE",{"$f":"'Krok 2'!B120","v":"Pewny start. B Karty pracy Plastyka, grafomotoryka"},"086626",44,{"$f":"'Krok 2'!E120","v":0},0]
["MATERIAŁY EDUKACYJNE",{"$f":"'Krok 2'!B121","v":"Pewny start. C Pakiet edukacyjny zestaw moja książka. Codziennik. Funkcjonowanie,komunikacja,kreatywność"},"086681",197,{"$f":"'Krok 2'!E121","v":0},0]
["MATERIAŁY EDUKACYJNE",{"$f":"'Krok 2'!B122","v":"Pewny start. C Moja książka"},"086682",110,{"$f":"'Krok 2'!E122","v":0},0]
["MATERIAŁY EDUKACYJNE",{"$f":"'Krok 2'!B123","v":"Pewny start. C Codziennik fun/kom/kre"},"086683",95,{"$f":"'Krok 2'!E123","v":0},0]
["MATERIAŁY ĆWICZENIOWE",{"$f":"'Krok 2'!B124","v":"Pewny start. C Pakiet ćwiczeniowy 1 czytanie, pisanie, plastyka,grafomotoryka"},"086684",77,{"$f":"'Krok 2'!E124","v":0},0]
["MATERIAŁY ĆWICZENIOWE",{"$f":"'Krok 2'!B125","v":"Pewny start. C Pakiet ćwiczeniowy 2-Jesień, zima, wiosna, lato"},"086687",77,{"$f":"'Krok 2'!E125","v":0},0]
["MATERIAŁY ĆWICZENIOWE",{"$f":"'Krok 2'!B126","v":"Pewny start. C Karty pracy  jesień/zima"},"086688",44,{"$f":"'Krok 2'!E126","v":0},0]
["MATERIAŁY ĆWICZENIOWE",{"$f":"'Krok 2'!B127","v":"Pewny start. C Karty pracy 2 wiosna/lato"},"086689",44,{"$f":"'Krok 2'!E127","v":0},0]
["MATERIAŁY ĆWICZENIOWE",{"$f":"'Krok 2'!B128","v":"Pewny start. C Karty pracy pisanie/czytanie"},"086685",44,{"$f":"'Krok 2'!E128","v":0},0]
["MATERIAŁY ĆWICZENIOWE",{"$f":"'Krok 2'!B129","v":"Pewny start. C Karty pracy matematyka"},"086686",44,{"$f":"'Krok 2'!E129","v":0},0]
["MATERIAŁY EDUKACYJNE",{"$f":"'Krok 2'!B130","v":"Pewny start. D Zestaw Moja książka, Codziennik szkolny. Funkcjonowanie, Codziennik szkolny. Komunikacja, Codziennik szkolny. Kreatywność "},"086581",380,{"$f":"'Krok 2'!E130","v":0},0]
["MATERIAŁY EDUKACYJNE",{"$f":"'Krok 2'!B131","v":"Pewny start. D Moja książka"},"086582",112,{"$f":"'Krok 2'!E131","v":0},0]
["MATERIAŁY EDUKACYJNE",{"$f":"'Krok 2'!B132","v":"Pewny start. D Codziennik szkolny. Funkcjonowanie"},"086583",95,{"$f":"'Krok 2'!E132","v":0},0]
["MATERIAŁY ĆWICZENIOWE",{"$f":"'Krok 2'!B133","v":"Pewny start. D Codziennik szkolny. Komunikacja"},"086584",95,{"$f":"'Krok 2'!E133","v":0},0]
["MATERIAŁY ĆWICZENIOWE",{"$f":"'Krok 2'!B134","v":"Pewny start. D Codziennik szkolny. Kreatywność"},"086585",95,{"$f":"'Krok 2'!E134","v":0},0]
["MATERIAŁY ĆWICZENIOWE",{"$f":"'Krok 2'!B135","v":"Pewny start. D  Zestaw. Karty pracy. Jesień, zima, Wiosna, lato"},"086586",77,{"$f":"'Krok 2'!E135","v":0},0]
["MATERIAŁY ĆWICZENIOWE",{"$f":"'Krok 2'!B136","v":"Pewny start. D Karty pracy.  Jesień, zima"},"086587",44,{"$f":"'Krok 2'!E136","v":0},0]
["MATERIAŁY ĆWICZENIOWE",{"$f":"'Krok 2'!B137","v":"Pewny start. D Karty pracy.  Wiosna, lato"},"086588",44,{"$f":"'Krok 2'!E137","v":0},0]
["MATERIAŁY EDUKACYJNE",{"$f":"'Krok 2'!B138","v":"Pewny start. E Zestaw Moja książka, Codziennik. Funkcjonowanie 1-2, Komunikacja, Kreatywność"},"086641",495,{"$f":"'Krok 2'!E138","v":0},0]
["MATERIAŁY EDUKACYJNE",{"$f":"'Krok 2'!B139","v":"Pewny start. E Moja książka"},"086642",130,{"$f":"'Krok 2'!E139","v":0},0]
["MATERIAŁY EDUKACYJNE",{"$f":"'Krok 2'!B140","v":"Pewny start. E Cdziennik. Funkcjonowanie 1"},"086643",95,{"$f":"'Krok 2'!E140","v":0},0]
["MATERIAŁY EDUKACYJNE",{"$f":"'Krok 2'!B141","v":"Pewny start. E Codziennik. Funkcjonowanie 2"},"086644",95,{"$f":"'Krok 2'!E141","v":0},0]
["MATERIAŁY EDUKACYJNE",{"$f":"'Krok 2'!B142","v":"Pewny start. E Codziennik. Komunikacja"},"086645",95,{"$f":"'Krok 2'!E142","v":0},0]
["MATERIAŁY EDUKACYJNE",{"$f":"'Krok 2'!B143","v":"Pewny start. E Codziennik. Kreatywność"},"086646",95,{"$f":"'Krok 2'!E143","v":0},0]
["MATERIAŁY ĆWICZENIOWE",{"$f":"'Krok 2'!B144","v":"Pewny start. E Zestaw. Karty pracy. Jesień, zima, Wiosna, lato"},"086647",77,{"$f":"'Krok 2'!E144","v":0},0]
["MATERIAŁY ĆWICZENIOWE",{"$f":"'Krok 2'!B145","v":"Pewny start. E Karty pracy. Jesień, zima"},"086648",40,{"$f":"'Krok 2'!E145","v":0},0]
["MATERIAŁY ĆWICZENIOWE",{"$f":"'Krok 2'!B146","v":"Pewny start. E Karty pracy. Wiosna, lato"},"086649",40,{"$f":"'Krok 2'!E146","v":0},0]
["MATERIAŁY EDUKACYJNE",{"$f":"'Krok 2'!B147","v":"Pewny start. F Pakiet edukacyjny. Zestaw moja książka, Codziennik. Funkcjonowanie 1-2, Komunikacja, Kreatywność"},"086701",495,{"$f":"'Krok 2'!E147","v":0},0]
["MATERIAŁY EDUKACYJNE",{"$f":"'Krok 2'!B148","v":"Pewny start. F Moja książka"},"086702",130,{"$f":"'Krok 2'!E148","v":0},0]
["MATERIAŁY EDUKACYJNE",{"$f":"'Krok 2'!B149","v":"Pewny start. F Cdziennik. Funkcjonowanie 1"},"086703",95,{"$f":"'Krok 2'!E149","v":0},0]
["MATERIAŁY EDUKACYJNE",{"$f":"'Krok 2'!B150","v":"Pewny start. F Codziennik. Funkcjonowanie 2"},"086704",95,{"$f":"'Krok 2'!E150","v":0},0]
["MATERIAŁY EDUKACYJNE",{"$f":"'Krok 2'!B151","v":"Pewny start. F Codziennik. Komunikacja"},"086705",95,{"$f":"'Krok 2'!E151","v":0},0]
["MATERIAŁY EDUKACYJNE",{"$f":"'Krok 2'!B152","v":"Pewny start. F Codziennik. Kreatywność"},"086706",95,{"$f":"'Krok 2'!E152","v":0},0]
["MATERIAŁY ĆWICZENIOWE",{"$f":"'Krok 2'!B153","v":"Pewny start. F Pakiet ćwiczeniowy. Zestaw karty pracy: jesień, zima, wiosna, lato"},"086707",77,{"$f":"'Krok 2'!E153","v":0},0]
["MATERIAŁY ĆWICZENIOWE",{"$f":"'Krok 2'!B154","v":"Pewny start. F Karty pracy. Jesień/zima"},"086708",40,{"$f":"'Krok 2'!E154","v":0},0]
["MATERIAŁY ĆWICZENIOWE",{"$f":"'Krok 2'!B155","v":"Pewny start. F Karty pracy. Wiosna/lato"},"086709",40,{"$f":"'Krok 2'!E155","v":0},0]
["MATERIAŁY EDUKACYJNE",{"$f":"'Krok 2'!B156","v":"Pewny start. G Zestaw Moja książka. Codziennik szkolny. Funkcjonowanie 1-3, Komunikacja 1-2, Kreatywność "},"086601",650,{"$f":"'Krok 2'!E156","v":0},0]
["MATERIAŁY EDUKACYJNE",{"$f":"'Krok 2'!B157","v":"Pewny start. G Moja książka"},"086602",112,{"$f":"'Krok 2'!E157","v":0},0]
["MATERIAŁY EDUKACYJNE",{"$f":"'Krok 2'!B158","v":"Pewny start. G Codziennik szkolny. Funkcjonowanie 1"},"086603",95,{"$f":"'Krok 2'!E158","v":0},0]
["MATERIAŁY EDUKACYJNE",{"$f":"'Krok 2'!B159","v":"Pewny start. G Codziennik szkolny. Funkcjonowanie 2"},"086604",95,{"$f":"'Krok 2'!E159","v":0},0]
["MATERIAŁY EDUKACYJNE",{"$f":"'Krok 2'!B160","v":"Pewny start. G Codziennik szkolny. Funkcjonowanie 3"},"086605",95,{"$f":"'Krok 2'!E160","v":0},0]
["MATERIAŁY EDUKACYJNE",{"$f":"'Krok 2'!B161","v":"Pewny start. G Codziennik szkolny. Komunikacja 1"},"086606",95,{"$f":"'Krok 2'!E161","v":0},0]
["MATERIAŁY EDUKACYJNE",{"$f":"'Krok 2'!B162","v":"Pewny start. G Codziennik szkolny. Komunikacja 2"},"086607",95,{"$f":"'Krok 2'!E162","v":0},0]
["MATERIAŁY EDUKACYJNE",{"$f":"'Krok 2'!B163","v":"Pewny start. G Codziennik szkolny. Kreatywność"},"086608",95,{"$f":"'Krok 2'!E163","v":0},0]
["MATERIAŁY ĆWICZENIOWE",{"$f":"'Krok 2'!B164","v":"Pewny start. G Zestaw. Karty pracy. Jesień, zima, Wiosna, lato"},"086609",77,{"$f":"'Krok 2'!E164","v":0},0]
["MATERIAŁY ĆWICZENIOWE",{"$f":"'Krok 2'!B165","v":"Pewny start. G Karty pracy  Jesień, zima"},"086610",39,{"$f":"'Krok 2'!E165","v":0},0]
["MATERIAŁY ĆWICZENIOWE",{"$f":"'Krok 2'!B166","v":"Pewny start. G Karty pracy  Wiosna, lato"},"086611",39,{"$f":"'Krok 2'!E166","v":0},0]
["MATERIAŁY EDUKACYJNE",{"$f":"'Krok 2'!B167","v":"Pewny start. H Zestaw Moja książka, Codziennik. Funkcjonowanie 1-3, Komunikacja1-2, Kreatywność"},"086661",690,{"$f":"'Krok 2'!E167","v":0},0]
["MATERIAŁY EDUKACYJNE",{"$f":"'Krok 2'!B168","v":"Pewny start. H Moja książka"},"086662",130,{"$f":"'Krok 2'!E168","v":0},{"$f":"E127*D127","v":0}]
["MATERIAŁY EDUKACYJNE",{"$f":"'Krok 2'!B169","v":"Pewny start. H Codziennik funkcjonowanie 1"},"086663",95,{"$f":"'Krok 2'!E169","v":0},0]
["MATERIAŁY EDUKACYJNE",{"$f":"'Krok 2'!B170","v":"Pewny start. H Codziennik funkcjonowanie 2"},"086664",95,{"$f":"'Krok 2'!E170","v":0},0]
["MATERIAŁY EDUKACYJNE",{"$f":"'Krok 2'!B171","v":"Pewny start. H Codziennik funkcjonowanie 3"},"086665",95,{"$f":"'Krok 2'!E171","v":0},0]
["MATERIAŁY EDUKACYJNE",{"$f":"'Krok 2'!B172","v":"Pewny start. H Codziennik komunikacja 1"},"086666",95,{"$f":"'Krok 2'!E172","v":0},0]
["MATERIAŁY EDUKACYJNE",{"$f":"'Krok 2'!B173","v":"Pewny start. H Codziennik komunikacja 2"},"086667",95,{"$f":"'Krok 2'!E173","v":0},0]
["MATERIAŁY EDUKACYJNE",{"$f":"'Krok 2'!B174","v":"Pewny start. H Codziennik kreatywność"},"086668",95,{"$f":"'Krok 2'!E174","v":0},0]
["MATERIAŁY ĆWICZENIOWE",{"$f":"'Krok 2'!B175","v":"Pewny start. H Zestaw. Karty pracy. Jesień, zima, Wiosna, lato"},"086669",77,{"$f":"'Krok 2'!E175","v":0},0]
["MATERIAŁY ĆWICZENIOWE",{"$f":"'Krok 2'!B176","v":"Pewny start. H Karty pracy  jesień/zima"},"086670",40,{"$f":"'Krok 2'!E176","v":0},0]
["MATERIAŁY ĆWICZENIOWE",{"$f":"'Krok 2'!B177","v":"Pewny start. H Karty pracy  wiosna/lato"},"086671",40,{"$f":"'Krok 2'!E177","v":0},0]
["MATERIAŁY EDUKACYJNE / MATERIAŁY ĆWICZENIOWE",{"$f":"'Krok 2'!B178","v":"Akademia pomysłów. Zajęcia wyrównawcze Zestaw"},"085611",499,{"$f":"'Krok 2'!E178","v":0},0]
["MATERIAŁY EDUKACYJNE / MATERIAŁY ĆWICZENIOWE",{"$f":"'Krok 2'!B179","v":"Akademia pomysłów. Uczeń z  niepełnosprawnością intelektualną w stopniu lekkim Zestaw"},"085591",499,{"$f":"'Krok 2'!E179","v":0},0]
["MATERIAŁY EDUKACYJNE / MATERIAŁY ĆWICZENIOWE",{"$f":"'Krok 2'!B180","v":"Akademia pomysłów. Uczeń ze spektrum autyzmu 1-3 Zestaw"},"085551",499,{"$f":"'Krok 2'!E180","v":0},0]
["MATERIAŁY EDUKACYJNE",{"$f":"'Krok 2'!B181","v":"Pewny start. Nowe cztery pory roku Karty matematyczne. Liczby"},"085938",47,{"$f":"'Krok 2'!E181","v":0},0]
["MATERIAŁY EDUKACYJNE",{"$f":"'Krok 2'!B182","v":"Pewny start. Nowe cztery pory roku Karty do nauki czytania i pisania. Litery i wyrazy"},"085937",60,{"$f":"'Krok 2'!E182","v":0},0]
["MATERIAŁY ĆWICZENIOWE",{"$f":"'Krok 2'!B183","v":"Pewny start. Nowe cztery pory roku Karty zadaniowe. Umiem to zrobić"},"085936",43,{"$f":"'Krok 2'!E183","v":0},0]
["MATERIAŁY ĆWICZENIOWE",{"$f":"'Krok 2'!B184","v":"Pewny start. Nowe cztery pory roku Karty pracy. Jesień"},"085932",55,{"$f":"'Krok 2'!E184","v":0},0]
["MATERIAŁY ĆWICZENIOWE",{"$f":"'Krok 2'!B185","v":"Pewny start. Nowe cztery pory roku Karty pracy. Wiosna, lato"},"085934",55,{"$f":"'Krok 2'!E185","v":0},0]
["MATERIAŁY ĆWICZENIOWE",{"$f":"'Krok 2'!B186","v":"Pewny start. Nowe cztery pory roku Karty pracy. Zima"},"085933",55,{"$f":"'Krok 2'!E186","v":0},0]
["MATERIAŁY ĆWICZENIOWE",{"$f":"'Krok 2'!B187","v":"Funkcje psychofizyczne. Karty pracy. Grafomotoryka. Poziom 1"},"086531",60,{"$f":"'Krok 2'!E187","v":0},0]
["MATERIAŁY ĆWICZENIOWE",{"$f":"'Krok 2'!B188","v":"Funkcje psychofizyczne. Karty pracy. Koncentracja uwagi. Poziom 1"},"086532",60,{"$f":"'Krok 2'!E188","v":0},0]
["MATERIAŁY ĆWICZENIOWE",{"$f":"'Krok 2'!B189","v":"Funkcje psychofizyczne. Karty pracy. Percepcja wzrokowa. Poziom 1"},"086533",60,{"$f":"'Krok 2'!E189","v":0},0]
["MATERIAŁY ĆWICZENIOWE",{"$f":"'Krok 2'!B190","v":"Funkcje psychofizyczne. Karty pracy. Percepcja słuchowa. Poziom 1"},"086534",60,{"$f":"'Krok 2'!E190","v":0},0]
["MATERIAŁY ĆWICZENIOWE",{"$f":"'Krok 2'!B191","v":"Funkcje psychofizyczne.Karty pracy. Orientacja przestrzenna. Poziom 1"},"086535",60,{"$f":"'Krok 2'!E191","v":0},0]
["MATERIAŁY ĆWICZENIOWE",{"$f":"'Krok 2'!B192","v":"Funkcje psychofizyczne. Karty pracy. Funkcjonowanie społeczne. Poziom 1"},"086536",60,{"$f":"'Krok 2'!E192","v":0},0]
["MATERIAŁY ĆWICZENIOWE",{"$f":"'Krok 2'!B193","v":"Funkcje psychofizyczne. Karty pracy. Wypowiedzi ustne i pisemne. Poziom1"},"086537",60,{"$f":"'Krok 2'!E193","v":0},0]
["MATERIAŁY EDUKACYJNE",{"$f":"'Krok 2'!B194","v":"PWN Akademia pisania. Układanki obrazkowo-wyrazowe. Poznaję i utrwalam poprawną wpisownię wyrazów ó/u"},"049141",44,{"$f":"'Krok 2'!E194","v":0},0]
["MATERIAŁY EDUKACYJNE",{"$f":"'Krok 2'!B195","v":"PWN Akademia pisania. Układanki obrazkowo-wyrazowe. Poznaję i utrwalam poprawną wpisownię wyrazów rz/ż"},"049142",44,{"$f":"'Krok 2'!E195","v":0},0]
["MATERIAŁY EDUKACYJNE",{"$f":"'Krok 2'!B196","v":"Pewny start. Zaśpiewajmy razem. Śpiewnik z symbolami PCS"},"049741",90,{"$f":"'Krok 2'!E196","v":0},0]
["MATERIAŁY ĆWICZENIOWE",{"$f":"'Krok 2'!B197","v":"PWN Pewny start. Zaśpiewajmy razem. Zeszyt ćwiczeń Zeszyt plastyczno- grafomotoryczny do śpiewnika z symbolami PCS"},"049742",30,{"$f":"'Krok 2'!E197","v":0},0]
["MATERIAŁY ĆWICZENIOWE",{"$f":"'Krok 2'!B198","v":"Funkcje psychofizyczne. Funkcjonowanie społeczne 2"},"086542",60,{"$f":"'Krok 2'!E198","v":0},0]
["MATERIAŁY ĆWICZENIOWE",{"$f":"'Krok 2'!B199","v":"Funkcje psychofizyczne. Koncentracja uwagi 2"},"086538",60,{"$f":"'Krok 2'!E199","v":0},0]
["MATERIAŁY ĆWICZENIOWE",{"$f":"'Krok 2'!B200","v":"Funkcje psychofizyczne.Orientacja przestrzenna 2"},"086541",60,{"$f":"'Krok 2'!E200","v":0},0]
["MATERIAŁY ĆWICZENIOWE",{"$f":"'Krok 2'!B201","v":"Funkcje psychofizyczne. Percepcja słuchowa 2"},"086540",60,{"$f":"'Krok 2'!E201","v":0},0]
["MATERIAŁY ĆWICZENIOWE",{"$f":"'Krok 2'!B202","v":"Funkcje psychofizyczne.Percepcja wzrokowa 2"},"086539",60,{"$f":"'Krok 2'!E202","v":0},0]
["MATERIAŁY ĆWICZENIOWE",{"$f":"'Krok 2'!B203","v":"Funkcje psychofizyczne.Wypowiedzi ustne i pisemne 2"},"086543",60,{"$f":"'Krok 2'!E203","v":0},0]
["MATERIAŁY EDUKACYJNE",{"$f":"'Krok 2'!B204","v":"Pewny start. Mój dobry rok. Materiał edukacyjny. Lubię jesień, Lubię zimę, Lubię wiosnę, lubię lato"},"085831",83,{"$f":"'Krok 2'!E204","v":0},0]
["MATERIAŁY ĆWICZENIOWE",{"$f":"'Krok 2'!B205","v":"Pewny start. Mój dobry rok. Karty pracy. Czytanie i pisanie"},"085832",52,{"$f":"'Krok 2'!E205","v":0},0]
["MATERIAŁY ĆWICZENIOWE",{"$f":"'Krok 2'!B206","v":"PWN Pewny start. Mój dobry rok. Plansze konturowe"},"049281",63,{"$f":"'Krok 2'!E206","v":0},0]
["MATERIAŁY EDUKACYJNE",{"$f":"'Krok 2'!B207","v":"Pewny start. Świat wokół mnie. Wycinanki. Emocje"},"086193",43,{"$f":"'Krok 2'!E207","v":0},0]
["MATERIAŁY EDUKACYJNE",{"$f":"'Krok 2'!B208","v":"Pewny start. Świat wokół mnie. Historyjki obrazkowe. Układam, opowiadam"},"086192",56,{"$f":"'Krok 2'!E208","v":0},0]
["MATERIAŁY EDUKACYJNE",{"$f":"'Krok 2'!B209","v":"Pewny start. Świat wokół mnie. Czytanki. Ola, Adam i ich świat"},"086195",43,{"$f":"'Krok 2'!E209","v":0},0]
["MATERIAŁY EDUKACYJNE",{"$f":"'Krok 2'!B210","v":"Pewny start. Wokół pór roku. Czytanki. Rozmowy Oli i Adama"},"086265",43,{"$f":"'Krok 2'!E210","v":0},0]
["MATERIAŁY ĆWICZENIOWE",{"$f":"'Krok 2'!B211","v":"Pewny start. Wokół pór roku. Karty pracy. Wokół jesieni"},"086262",39,{"$f":"'Krok 2'!E211","v":0},0]
["MATERIAŁY ĆWICZENIOWE",{"$f":"'Krok 2'!B212","v":"Pewny start. Wokół pór roku. Karty pracy. Wokół wiosny, wokół lata"},"086264",39,{"$f":"'Krok 2'!E212","v":0},0]
["MATERIAŁY ĆWICZENIOWE",{"$f":"'Krok 2'!B213","v":"Pewny start. Wokół pór roku. Karty pracy. Wokół zimy"},"086263",39,{"$f":"'Krok 2'!E213","v":0},0]
["MATERIAŁY ĆWICZENIOWE",{"$f":"'Krok 2'!B214","v":"Pewny start. Moja matematyka. Zestaw Kart pracy Jesień, Zima, Wiosna,lato. Poziom A"},"086481",154,{"$f":"'Krok 2'!E214","v":0},0]
["MATERIAŁY ĆWICZENIOWE",{"$f":"'Krok 2'!B215","v":"Pewny start. Moja matematyka. Karty pracy. Jesień. Poziom A"},"086482",55,{"$f":"'Krok 2'!E215","v":0},0]
["MATERIAŁY ĆWICZENIOWE",{"$f":"'Krok 2'!B216","v":"Pewny start. Moja matematyka. Karty pracy. Zima. Poziom A"},"086483",55,{"$f":"'Krok 2'!E216","v":0},0]
["MATERIAŁY ĆWICZENIOWE",{"$f":"'Krok 2'!B217","v":"Pewny start. Moja matematyka. Karty pracy. Wiosna, lato. Poziom A"},"086484",55,{"$f":"'Krok 2'!E217","v":0},0]
["MATERIAŁY ĆWICZENIOWE",{"$f":"'Krok 2'!B218","v":"Pewny start. Moja matematyka. Zestaw Kart pracy. Jesień, Zima, Wiosna,lato. Poziom B"},"086485",154,{"$f":"'Krok 2'!E218","v":0},0]
["MATERIAŁY ĆWICZENIOWE",{"$f":"'Krok 2'!B219","v":"Pewny start. Moja matematyka. Karty pracy. Jesień. Poziom B"},"086486",55,{"$f":"'Krok 2'!E219","v":0},0]
["MATERIAŁY ĆWICZENIOWE",{"$f":"'Krok 2'!B220","v":"Pewny start. Moja matematyka. Karty pracy. Zima. Poziom B"},"086487",55,{"$f":"'Krok 2'!E220","v":0},0]
["MATERIAŁY ĆWICZENIOWE",{"$f":"'Krok 2'!B221","v":"Pewny start. Moja matematyka. Karty pracy. Wiosna, lato. Poziom B"},"086488",55,{"$f":"'Krok 2'!E221","v":0},0]
["MATERIAŁY ĆWICZENIOWE",{"$f":"'Krok 2'!B222","v":"Pewny start. Moja codzienność. Karty pracy. Jesień"},"085811",42,{"$f":"'Krok 2'!E222","v":0},0]
["MATERIAŁY ĆWICZENIOWE",{"$f":"'Krok 2'!B223","v":"Pewny start. Moja codzienność. Karty pracy. Wiosna, lato"},"085813",42,{"$f":"'Krok 2'!E223","v":0},0]
["MATERIAŁY ĆWICZENIOWE",{"$f":"'Krok 2'!B224","v":"Pewny start. Moja codzienność. Karty pracy. Zima"},"085812",42,{"$f":"'Krok 2'!E224","v":0},0]
["MATERIAŁY EDUKACYJNE / MATERIAŁY ĆWICZENIOWE",{"$f":"'Krok 2'!B225","v":"Akademia pomysłów. Uczeń ze spektrum autyzmu 4-8 Zestaw"},"085571",499,{"$f":"'Krok 2'!E225","v":0},0]
["MATERIAŁY EDUKACYJNE",{"$f":"'Krok 2'!B226","v":"Pewny start. Odkrywam świat. Materiał edukacyjny. Moja książka. PoziomA"},"086112",96,{"$f":"'Krok 2'!E226","v":0},0]
["MATERIAŁY ĆWICZENIOWE",{"$f":"'Krok 2'!B227","v":"Pewny start. Odkrywam świat. Moje ćwiczenia. Poziom A"},"086111",52,{"$f":"'Krok 2'!E227","v":0},0]
["MATERIAŁY ĆWICZENIOWE",{"$f":"'Krok 2'!B228","v":"Pewny start. Odkrywam świat. Moje ćwiczenia. Poziom B"},"086113",52,{"$f":"'Krok 2'!E228","v":0},0]
["MATERIAŁY ĆWICZENIOWE",{"$f":"'Krok 2'!B229","v":"Pewny start. Poznać i zrozumieć uczucia. Karty pracy. Nasz wewnętrzny świat"},"086142",39,{"$f":"'Krok 2'!E229","v":0},0]
["MATERIAŁY EDUKACYJNE",{"$f":"'Krok 2'!B230","v":"Pewny start. Poznać i zrozumieć uczucia. Poradnik pozytywny. Jak sobie radzić z uczuciami"},"086147",62,{"$f":"'Krok 2'!E230","v":0},0]
["MATERIAŁY EDUKACYJNE",{"$f":"'Krok 2'!B231","v":"Pewny start. Poznać i zrozumieć uczucia. Historyjki społeczne. Uczucia w nas i w relacjach ze światem"},"086146",56,{"$f":"'Krok 2'!E231","v":0},0]
["MATERIAŁY EDUKACYJNE",{"$f":"'Krok 2'!B232","v":"Pewny start. Poznać i zrozumieć uczucia. Historyjki obrazkowe. Co by było, gdyby"},"086148",83,{"$f":"'Krok 2'!E232","v":0},{"$f":"E191*D191","v":0}]
["MATERIAŁY EDUKACYJNE",{"$f":"'Krok 2'!B233","v":"PWN Pewny start. Aktywni zawodowo. Materiał edukacyjny. ABC rękodzieła"},"049157",75,{"$f":"'Krok 2'!E233","v":0},0]
["MATERIAŁY EDUKACYJNE",{"$f":"'Krok 2'!B234","v":"PWN Pewny start. Aktywni zawodowo. Materiał edukacyjny. Pracuję w biurze"},"049164",75,{"$f":"'Krok 2'!E234","v":0},0]
["MATERIAŁY EDUKACYJNE",{"$f":"'Krok 2'!B235","v":"PWN Pewny start. Aktywni zawodowo. Materiał edukacyjny. Podaję do stołu"},"049169",75,{"$f":"'Krok 2'!E235","v":0},0]
["MATERIAŁY EDUKACYJNE",{"$f":"'Krok 2'!B236","v":"PWN Pewny start. Aktywni zawodowo. Materiał edukacyjny. ABC pracy w kuchni"},"049167",75,{"$f":"'Krok 2'!E236","v":0},0]
["MATERIAŁY EDUKACYJNE",{"$f":"'Krok 2'!B237","v":"PWN Pewny start. Aktywni zawodowo. Materiał edukacyjny. Obsługa AGD  w kuchni"},"049168",75,{"$f":"'Krok 2'!E237","v":0},0]
["MATERIAŁY EDUKACYJNE",{"$f":"'Krok 2'!B238","v":"PWN Pewny start. Aktywni zawodowo. Plansze magnetyczne. Kalendarz ogrodnika"},"049177",200,{"$f":"'Krok 2'!E238","v":0},0]
["MATERIAŁY EDUKACYJNE",{"$f":"'Krok 2'!B239","v":"Pewny start. Aktywni zawodowo. Prace porządkowe. Czynności porządkowe. Materiał edukacyjny"},"085713",75,{"$f":"'Krok 2'!E239","v":0},0]
["MATERIAŁY ĆWICZENIOWE",{"$f":"'Krok 2'!B240","v":"Pewny start. Aktywni zawodowo. Karty pracy 1. Rękodzieło"},"085705",50,{"$f":"'Krok 2'!E240","v":0},0]
["MATERIAŁY ĆWICZENIOWE",{"$f":"'Krok 2'!B241","v":"Pewny start. Aktywni zawodowo. Karty pracy 2. Rękodzieło"},"085706",50,{"$f":"'Krok 2'!E241","v":0},0]
["MATERIAŁY ĆWICZENIOWE",{"$f":"'Krok 2'!B242","v":"Pewny start. Aktywni zawodowo. Karty pracy 1. Prace biurowe"},"085703",50,{"$f":"'Krok 2'!E242","v":0},0]
["MATERIAŁY ĆWICZENIOWE",{"$f":"'Krok 2'!B243","v":"Pewny start. Aktywni zawodowo. Karty pracy 2. Prace biurowe"},"085704",50,{"$f":"'Krok 2'!E243","v":0},0]
["MATERIAŁY ĆWICZENIOWE",{"$f":"'Krok 2'!B244","v":"Pewny start. Aktywni zawodowo. Karty pracy 1. Zajęcia kulinarne"},"085707",50,{"$f":"'Krok 2'!E244","v":0},0]
["MATERIAŁY ĆWICZENIOWE",{"$f":"'Krok 2'!B245","v":"Pewny start. Aktywni zawodowo. Karty pracy 2. Zajęcia kulinarne"},"085708",50,{"$f":"'Krok 2'!E245","v":0},0]
["MATERIAŁY ĆWICZENIOWE",{"$f":"'Krok 2'!B246","v":"Pewny start. Aktywni zawodowo. Karty pracy 3. Zajęcia kulinarne"},"049172",50,{"$f":"'Krok 2'!E246","v":0},0]
["MATERIAŁY ĆWICZENIOWE",{"$f":"'Krok 2'!B247","v":"Pewny start. Aktywni zawodowo. Karty pracy 1. Ogrodnictwo"},"085701",50,{"$f":"'Krok 2'!E247","v":0},0]
["MATERIAŁY ĆWICZENIOWE",{"$f":"'Krok 2'!B248","v":"Pewny start. Aktywni zawodowo. Karty pracy 2. Ogrodnictwo"},"085702",50,{"$f":"'Krok 2'!E248","v":0},0]
["MATERIAŁY ĆWICZENIOWE",{"$f":"'Krok 2'!B249","v":"Pewny start. Aktywni zawodowo. Prace porządkowe. Karty pracy 1"},"085710",50,{"$f":"'Krok 2'!E249","v":0},0]
["MATERIAŁY ĆWICZENIOWE",{"$f":"'Krok 2'!B250","v":"Pewny start. Aktywni zawodowo. Prace porządkowe. Karty pracy 2"},"085711",50,{"$f":"'Krok 2'!E250","v":0},0]
["MATERIAŁY ĆWICZENIOWE",{"$f":"'Krok 2'!B251","v":"Pewny start. Aktywni zawodowo. Prace porządkowe. Karty pracy 3"},"085712",50,{"$f":"'Krok 2'!E251","v":0},0]
["MATERIAŁY ĆWICZENIOWE",{"$f":"'Krok 2'!B252","v":"Funkcje psychofizyczne. Karty pracy. Koncentracja uwagi. Poziom 3"},"086544",60,{"$f":"'Krok 2'!E252","v":0},0]
["MATERIAŁY ĆWICZENIOWE",{"$f":"'Krok 2'!B253","v":"Funkcje psychofizyczne. Karty pracy. Percepcja wzrokowa. Poziom 3"},"086545",60,{"$f":"'Krok 2'!E253","v":0},0]
["MATERIAŁY ĆWICZENIOWE",{"$f":"'Krok 2'!B254","v":"Funkcje psychofizyczne. Karty pracy. Percepcja słuchowa. Poziom 3"},"086546",60,{"$f":"'Krok 2'!E254","v":0},0]
["MATERIAŁY ĆWICZENIOWE",{"$f":"'Krok 2'!B255","v":"Funkcje psychofizyczne. Karty pracy. Orientacja przestrzenna. Poziom 3"},"086547",60,{"$f":"'Krok 2'!E255","v":0},0]
["MATERIAŁY ĆWICZENIOWE",{"$f":"'Krok 2'!B256","v":"Funkcje psychofizyczne. Karty pracy. Funkcjonowanie społeczne. Poziom 3"},"086548",60,{"$f":"'Krok 2'!E256","v":0},0]
["MATERIAŁY ĆWICZENIOWE",{"$f":"'Krok 2'!B257","v":"Funkcje psychofizyczne. Karty pracy. Wypowiedzi ustne i pisemne. Poziom 3"},"086549",60,{"$f":"'Krok 2'!E257","v":0},0]
["MATERIAŁY EDUKACYJNE",{"$f":"'Krok 2'!B258","v":"PWN Pewny start. Instrukcje zachowań. Asertywność"},"049283",43,{"$f":"'Krok 2'!E258","v":0},0]
["MATERIAŁY EDUKACYJNE",{"$f":"'Krok 2'!B259","v":"PWN Pewny start. Instrukcje zachowań. Bezpieczeństwo na drodze"},"049284",43,{"$f":"'Krok 2'!E259","v":0},0]
["MATERIAŁY EDUKACYJNE",{"$f":"'Krok 2'!B260","v":"PWN Pewny start. Instrukcje zachowań. Choroba"},"049286",43,{"$f":"'Krok 2'!E260","v":0},0]
["MATERIAŁY EDUKACYJNE",{"$f":"'Krok 2'!B261","v":"PWN Pewny start. Instrukcje zachowań. Czas wolny"},"049288",43,{"$f":"'Krok 2'!E261","v":0},0]
["MATERIAŁY EDUKACYJNE",{"$f":"'Krok 2'!B262","v":"PWN Pewny start. Instrukcje zachowań. Dbam o swoje ciało"},"049289",43,{"$f":"'Krok 2'!E262","v":0},0]
["MATERIAŁY EDUKACYJNE",{"$f":"'Krok 2'!B263","v":"PWN Pewny start. Instrukcje zachowań. Jedzenie"},"049292",43,{"$f":"'Krok 2'!E263","v":0},0]
["MATERIAŁY EDUKACYJNE",{"$f":"'Krok 2'!B264","v":"PWN Pewny start. Instrukcje zachowań. Jestem dorosły"},"049293",43,{"$f":"'Krok 2'!E264","v":0},0]
["MATERIAŁY EDUKACYJNE",{"$f":"'Krok 2'!B265","v":"PWN Pewny start. Instrukcje zachowań. Kawiarnia"},"049294",43,{"$f":"'Krok 2'!E265","v":0},0]
["MATERIAŁY EDUKACYJNE",{"$f":"'Krok 2'!B266","v":"PWN Pewny start. Instrukcje zachowań. Kim jestem?"},"049295",43,{"$f":"'Krok 2'!E266","v":0},0]
["MATERIAŁY EDUKACYJNE",{"$f":"'Krok 2'!B267","v":"PWN Pewny start. Instrukcje zachowań. Pory roku"},"049300",43,{"$f":"'Krok 2'!E267","v":0},0]
["MATERIAŁY EDUKACYJNE",{"$f":"'Krok 2'!B268","v":"PWN Pewny start. Instrukcje zachowań. Ubranie"},"049301",43,{"$f":"'Krok 2'!E268","v":0},0]
["MATERIAŁY EDUKACYJNE",{"$f":"'Krok 2'!B269","v":"PWN Pewny start. Instrukcje zachowań. Zakupy"},"049302",43,{"$f":"'Krok 2'!E269","v":0},0]
["MATERIAŁY EDUKACYJNE",{"$f":"'Krok 2'!B270","v":"PWN Pewny start. Czytam sam. Ja i świat zwierząt"},"049093",43,{"$f":"'Krok 2'!E270","v":0},0]
["OUTLET",{"$f":"'Krok 2'!B271","v":"PWN Akademia pomysłów. Jestem za rozmową. Komiks społeczny z ćwiczeniami 2"},"049017",69,{"$f":"'Krok 2'!E271","v":0},0]
["OUTLET",{"$f":"'Krok 2'!B272","v":"PWN Akademia pomysłów. Rozwój emocjonalno-społeczny. Ja i moje ciało. Część 2"},"049002",48,{"$f":"'Krok 2'!E272","v":0},0]
["OUTLET",{"$f":"'Krok 2'!B273","v":"Pewny start. Dzisiaj w szkole. Czytanki. Poznajemy Olę i Adama"},"085781",43,{"$f":"'Krok 2'!E273","v":0},0]
["OUTLET",{"$f":"'Krok 2'!B274","v":"PWN Pewny start. Mój dobry rok. Plansze demonstracyjne. Poznaję świat"},"049409",200,{"$f":"'Krok 2'!E274","v":0},0]
["OUTLET",{"$f":"'Krok 2'!B275","v":"PWN Pewny start. O dojrzewaniu.  Dziewczęta Zestaw"},"049497",265,{"$f":"'Krok 2'!E275","v":0},0]
[]
[]
[null,null,null,"Wartość zamówienia:",null,{"$f":"SUM(H11:H58,F62:F234)","v":0}]